fUST/lending_fUST_20250620
["ID","MTS","AMOUNT","RATE_DAILY","PERIOD"]
[366731435,1750422644492,-1000.0,0.00020335,2]
[366731436,1750422644502,-1000.0,0.00020335,2]
[366731437,1750422644514,-460.0,0.00020335,2]
[366731438,1750422644524,-500.0,0.00020335,2]
[366731439,1750422644535,-246.30434827,0.00020335,2]
[366731440,1750422644545,-700.52,0.00020335,2]
[366731441,1750422644557,-460.0,0.00020336,2]
[366731442,1750422644567,-400.0,0.00020336,2]
[366731443,1750422644577,-592.26007752,0.00020336,2]
[366731444,1750422644587,-422.28568139,0.00020336,2]
[366731445,1750422644598,-460.0,0.00020336,2]
[366731446,1750422644609,-460.0,0.00020336,2]
[366731447,1750422644619,-460.0,0.00020336,2]
[366731448,1750422644630,-329.75239953,0.00020336,2]
[366731449,1750422644640,-460.0,0.00020336,2]
[366731450,1750422644650,-346.26302682,0.00020336,2]
[366731451,1750422644660,-460.0,0.00020336,2]
[366731452,1750422644671,-460.0,0.00020336,2]
[366731453,1750422644683,-460.0,0.00020336,2]
[366731454,1750422644694,-460.0,0.00020336,2]
[366731455,1750422644704,-460.0,0.00020336,2]
[366731456,1750422644715,-500.0,0.00020336,2]
[366731457,1750422644726,-500.0,0.00020336,2]
[366731458,1750422644736,-418.62138534,0.00020336,2]
[366731459,1750422644746,-460.0,0.00020336,2]
[366731460,1750422644757,-380.0,0.00020336,2]
[366731461,1750422644768,-460.0,0.00020336,2]
[366731462,1750422644779,-458.41576635,0.00020336,2]
[366731463,1750422644790,-460.0,0.00020336,2]
[366731464,1750422644801,-460.0,0.00020336,2]
[366731465,1750422644812,-460.0,0.00020336,2]
[366731466,1750422644823,-460.0,0.00020336,2]
[366731467,1750422644834,-460.0,0.00020336,2]
[366731468,1750422644845,-460.0,0.00020336,2]
[366731469,1750422644855,-460.0,0.00020336,2]
[366731470,1750422644867,-460.0,0.00020336,2]
[366731471,1750422644877,-460.0,0.00020336,2]
[366731472,1750422644888,-160.0,0.00020336,2]
[366731473,1750422644899,-311.47251944,0.00020336,2]
[366731474,1750422644910,-364.76240816,0.00020336,2]
[366731475,1750422644921,-297.83334413,0.00020336,2]
[366731476,1750422644931,-460.0,0.00020336,2]
[366731477,1750422644942,-460.0,0.00020336,2]
[366731478,1750422644953,-214.09904144,0.00020336,2]
[366731479,1750422644964,-460.0,0.00020336,2]
[366731480,1750422644974,-700.52,0.00020336,2]
[366731481,1750422644985,-500.0,0.00020337,2]
[366731482,1750422644996,-500.0,0.00020337,2]
[366731483,1750422645006,-500.0,0.00020337,2]
[366731484,1750422645017,-500.0,0.00020337,2]
[366731485,1750422645028,-317.0,0.00020337,2]
[366731486,1750422645039,-700.52,0.00020337,2]
[366731487,1750422645049,-700.52,0.00020337,2]
[366731488,1750422645060,-700.52,0.00020337,2]
[366731489,1750422645071,-700.52,0.00020337,2]
[366731490,1750422645081,-460.0,0.00020338,2]
[366731491,1750422645091,-430.0,0.00020338,2]
[366731492,1750422645101,-460.0,0.00020338,2]
[366731493,1750422645114,-436.7071302,0.00020338,2]
[366731494,1750422645123,-473.11612061,0.00020338,2]
[366731495,1750422645134,-440.0,0.00020338,2]
[366731496,1750422645144,-460.0,0.00020338,2]
[366731497,1750422645154,-557.21968536,0.00020338,2]
[366731498,1750422645164,-460.0,0.00020338,2]
[366731499,1750422645174,-460.0,0.00020338,2]
[366731500,1750422645184,-460.0,0.00020338,2]
[366731501,1750422645194,-430.86821487,0.00020338,2]
[366731503,1750422645205,-460.0,0.00020338,2]
[366731504,1750422645215,-461.061973,0.00020338,2]
[366731505,1750422645225,-460.0,0.00020338,2]
[366731506,1750422645235,-460.0,0.00020338,2]
[366731507,1750422645245,-460.0,0.00020338,2]
[366731508,1750422645256,-460.0,0.00020338,2]
[366731509,1750422645266,-460.0,0.00020338,2]
[366731510,1750422645276,-460.0,0.00020338,2]
[366731511,1750422645286,-460.49687609,0.00020338,2]
[366731512,1750422645297,-460.0,0.00020338,2]
[366731513,1750422645306,-460.0,0.00020338,2]
[366731514,1750422645316,-460.0,0.00020338,2]
[366731515,1750422645327,-430.0,0.00020338,2]
[366731516,1750422645337,-460.0,0.00020338,2]
[366731518,1750422645348,-460.0,0.00020338,2]
[366731519,1750422645358,-460.0,0.00020338,2]
[366731520,1750422645368,-430.0,0.00020338,2]
[366731521,1750422645378,-405.46791203,0.00020338,2]
[366731522,1750422645388,-464.27381962,0.00020338,2]
[366731523,1750422645399,-151.0,0.00020338,2]
[366731524,1750422645409,-224.060465,0.00020338,2]
[366731525,1750422645419,-430.0,0.0002034,2]
[366731526,1750422645429,-334.0,0.00020343,2]
[366731527,1750422645439,-211.06366694,0.00020373,2]
[366731528,1750422645450,-623.37330923,0.00020373,2]
[366731529,1750422645459,-500.0,0.00020373,2]
[366731530,1750422645470,-700.52,0.00020375,2]
[366731532,1750422645480,-151.0,0.00020376,2]
[366731534,1750422645490,-151.0,0.00020376,2]
[366731536,1750422645500,-151.0,0.00020376,2]
[366731538,1750422645511,-151.0,0.00020376,2]
[366731540,1750422645522,-151.0,0.00020376,2]
[366731542,1750422645532,-151.0,0.00020376,2]
[366731544,1750422645542,-25000.0,0.00020376,2]
[366731546,1750422645553,-207.4,0.00020376,2]
[366731548,1750422645563,-168.0,0.00020475,2]
[366731550,1750422645574,-1810.0,0.0002048,2]
[366731552,1750422645584,-151.0,0.0002048,2]
[366731554,1750422645595,-4819.0,0.00020493,2]
[366731556,1750422645605,-151.0,0.00020493,2]
[366731558,1750422645615,-178.594565,0.00020493,2]
[366731560,1750422645626,-151.0,0.00020493,2]
[366731562,1750422645639,-205.192687,0.00020493,2]
[366731564,1750422645649,-320.836558,0.00020493,2]
[366731566,1750422645660,-320.836558,0.00020493,2]
[366731568,1750422645670,-151.0,0.00020493,2]
[366731570,1750422645680,-153.889488,0.00020493,2]
[366731572,1750422645692,-153.889488,0.00020493,2]
[366731574,1750422645702,-700.52,0.0002052,2]
[366731576,1750422645713,-700.52,0.0002052,2]
[366731578,1750422645723,-700.52,0.0002052,2]
[366731580,1750422645734,-700.52,0.0002052,2]
[366731582,1750422645745,-700.64010612,0.0002052,2]
[366731584,1750422645755,-1810.0,0.0002052,2]
[366731586,1750422645766,-460.0,0.00020583,2]
[366731588,1750422645777,-460.0,0.00020583,2]
[366731590,1750422645788,-460.0,0.00020583,2]
[366731592,1750422645800,-460.0,0.00020583,2]
[366731610,1750422645973,-233.53425712,0.00020583,2]
[366731612,1750422645984,-460.0,0.00020583,2]
[366731614,1750422645994,-441.65035572,0.00020583,2]
[366731616,1750422646005,-460.0,0.00020583,2]
[366731618,1750422646014,-460.0,0.00020583,2]
[366731620,1750422646024,-838.09,0.00020583,2]
[366731622,1750422646034,-460.0,0.00020583,2]
[366731624,1750422646043,-460.0,0.00020583,2]
[366731626,1750422646054,-460.0,0.00020583,2]
[366731628,1750422646065,-460.0,0.00020583,2]
[366731630,1750422646075,-460.0,0.00020583,2]
[366731632,1750422646085,-430.0,0.00020583,2]
[366731634,1750422646095,-1214.21,0.00020583,2]
[366731636,1750422646105,-460.0,0.00020583,2]
[366731638,1750422646115,-290.61478748,0.00020583,2]
[366731640,1750422646127,-460.0,0.00020583,2]
[366731642,1750422646137,-382.05453192,0.00020583,2]
[366731644,1750422646147,-1307.8,0.00020583,2]
[366731646,1750422646157,-249.04152307,0.00020583,2]
[366731648,1750422646167,-460.0,0.00020583,2]
[366731650,1750422646177,-460.0,0.00020583,2]
[366731652,1750422646187,-460.0,0.00020583,2]
[366731654,1750422646197,-453.32344696,0.00020583,2]
[366731656,1750422646207,-460.0,0.00020583,2]
[366731658,1750422646218,-1574.03,0.00020583,2]
[366731659,1750422646228,-460.0,0.00020583,2]
[366731661,1750422646237,-460.0,0.00020583,2]
[366731663,1750422646247,-460.0,0.00020583,2]
[366731665,1750422646257,-1347.75,0.00020583,2]
[366731667,1750422646266,-394.48632802,0.00020583,2]
[366731669,1750422646276,-460.0,0.00020583,2]
[366731671,1750422646285,-460.0,0.00020583,2]
[366731673,1750422646295,-1561.6,0.00020583,2]
[366731675,1750422646305,-430.33692148,0.00020583,2]
[366731677,1750422646315,-229.33594183,0.00020583,2]
[366731679,1750422646325,-464.69266172,0.00020583,2]
[366731681,1750422646335,-460.0,0.00020583,2]
[366731683,1750422646346,-460.0,0.00020583,2]
[366731685,1750422646355,-550.9032418,0.00020583,2]
[366731687,1750422646365,-430.0,0.00020583,2]
[366731689,1750422646375,-275.36396146,0.00020583,2]
[366731691,1750422646384,-460.0,0.00020583,2]
[366731693,1750422646394,-460.0,0.00020583,2]
[366731695,1750422646404,-460.0,0.00020583,2]
[366731697,1750422646414,-217.467,0.00020584,2]
[366731699,1750422646424,-460.0,0.000206,2]
[366731701,1750422646433,-460.0,0.000206,2]
[366731703,1750422646443,-460.0,0.000206,2]
[366731705,1750422646453,-460.0,0.000206,2]
[366731707,1750422646463,-460.0,0.000206,2]
[366731709,1750422646473,-460.0,0.000206,2]
[366731710,1750422646483,-460.0,0.00020601,2]
[366731712,1750422646492,-401.98597586,0.00020601,2]
[366731714,1750422646502,-460.0,0.00020601,2]
[366731716,1750422646512,-282.2729348,0.00020601,2]
[366731718,1750422646521,-411.46729121,0.00020601,2]
[366731720,1750422646531,-460.0,0.00020601,2]
[366731722,1750422646541,-760.62,0.00020601,2]
[366731724,1750422646551,-460.0,0.00020601,2]
[366731726,1750422646560,-460.0,0.00020601,2]
[366731728,1750422646570,-460.0,0.00020601,2]
[366731730,1750422646579,-460.0,0.00020601,2]
[366731732,1750422646589,-752.81,0.00020601,2]
[366731733,1750422646599,-445.35227652,0.00020601,2]
[366731735,1750422646608,-460.0,0.00020601,2]
[366731737,1750422646618,-460.0,0.00020601,2]
[366731739,1750422646628,-460.0,0.00020601,2]
[366731741,1750422646638,-515.97,0.00020601,2]
[366731743,1750422646648,-460.0,0.00020601,2]
[366731745,1750422646658,-460.0,0.00020601,2]
[366731747,1750422646668,-460.0,0.00020601,2]
[366731749,1750422646678,-460.0,0.00020601,2]
[366731751,1750422646688,-460.0,0.00020601,2]
[366731753,1750422646698,-460.0,0.00020601,2]
[366731755,1750422646707,-460.0,0.00020601,2]
[366731757,1750422646717,-460.0,0.00020601,2]
[366731759,1750422646726,-460.0,0.00020601,2]
[366731761,1750422646736,-460.0,0.00020601,2]
[366731763,1750422646746,-460.0,0.00020601,2]
[366731764,1750422646756,-460.0,0.00020601,2]
[366731766,1750422646766,-587.27,0.00020601,2]
[366731768,1750422646775,-460.0,0.00020601,2]
[366731770,1750422646784,-460.0,0.00020601,2]
[366731772,1750422646794,-460.0,0.00020601,2]
[366731774,1750422646804,-460.0,0.00020601,2]
[366731776,1750422646813,-240.0,0.00020601,2]
[366731778,1750422646823,-460.0,0.00020601,2]
[366731780,1750422646833,-460.0,0.00020601,2]
[366731782,1750422646843,-460.0,0.00020601,2]
[366731784,1750422646853,-460.0,0.00020601,2]
[366731786,1750422646863,-716.78,0.00020601,2]
[366731788,1750422646873,-463.28902634,0.00020601,2]
[366731790,1750422646883,-460.0,0.00020601,2]
[366731792,1750422646893,-460.0,0.00020601,2]
[366731794,1750422646903,-460.0,0.00020601,2]
[366731796,1750422646912,-460.0,0.00020601,2]
[366731798,1750422646922,-460.0,0.00020603,2]
[366731799,1750422646933,-396.57357204,0.00020603,2]
[366731801,1750422646942,-460.0,0.00020603,2]
[366731803,1750422646952,-460.0,0.00020606,2]
[366731805,1750422646962,-440.7665474,0.00020606,2]
[366731807,1750422646972,-460.0,0.00020606,2]
[366731809,1750422646983,-460.0,0.00020606,2]
[366731811,1750422646992,-460.0,0.00020606,2]
[366731813,1750422647002,-460.0,0.00020606,2]
[366731815,1750422647012,-244.72978302,0.00020606,2]
[366731817,1750422647021,-460.0,0.00020606,2]
[366731819,1750422647031,-460.0,0.00020606,2]
[366731821,1750422647041,-439.86793147,0.00020606,2]
[366731823,1750422647051,-460.0,0.00020606,2]
[366731825,1750422647060,-460.0,0.00020606,2]
[366731827,1750422647071,-440.0,0.00020606,2]
[366731829,1750422647081,-460.0,0.00020606,2]
[366731831,1750422647091,-151.0,0.00020606,2]
[366731833,1750422647102,-460.0,0.00020606,2]
[366731835,1750422647111,-460.0,0.00020606,2]
[366731837,1750422647121,-460.0,0.00020606,2]
[366731839,1750422647130,-151.0,0.00020606,2]
[366731841,1750422647140,-151.0,0.00020606,2]
[366731843,1750422647149,-460.0,0.00020606,2]
[366731845,1750422647159,-151.0,0.00020606,2]
[366731847,1750422647169,-460.0,0.00020606,2]
[366731849,1750422647179,-460.0,0.00020606,2]
[366731851,1750422647189,-151.0,0.00020606,2]
[366731853,1750422647199,-460.0,0.00020606,2]
[366731855,1750422647208,-151.0,0.00020606,2]
[366731857,1750422647218,-360.0,0.00020606,2]
[366731859,1750422647227,-151.0,0.00020606,2]
[366731860,1750422647237,-151.0,0.00020606,2]
[366731862,1750422647246,-460.0,0.00020606,2]
[366731864,1750422647256,-460.0,0.00020606,2]
[366731866,1750422647265,-460.0,0.00020606,2]
[366731868,1750422647274,-460.0,0.00020606,2]
[366731870,1750422647285,-309.25295576,0.00020606,2]
[366731872,1750422647294,-440.0,0.00020606,2]
[366731874,1750422647304,-460.0,0.00020606,2]
[366731876,1750422647313,-460.0,0.00020606,2]
[366731878,1750422647323,-151.0,0.00020606,2]
[366731880,1750422647333,-460.0,0.00020606,2]
[366731882,1750422647343,-460.0,0.00020606,2]
[366731884,1750422647354,-460.0,0.00020606,2]
[366731886,1750422647364,-460.0,0.00020606,2]
[366731888,1750422647374,-460.0,0.00020606,2]
[366731890,1750422647383,-460.0,0.00020606,2]
[366731892,1750422647393,-460.0,0.00020606,2]
[366731894,1750422647403,-460.0,0.00020606,2]
[366731896,1750422647413,-460.0,0.00020606,2]
[366731898,1750422647423,-462.7244869,0.00020606,2]
[366731900,1750422647432,-460.0,0.00020606,2]
[366731902,1750422647442,-460.0,0.00020606,2]
[366731904,1750422647451,-460.0,0.00020606,2]
[366731906,1750422647460,-460.0,0.00020606,2]
[366731908,1750422647470,-460.0,0.00020606,2]
[366731910,1750422647480,-460.0,0.00020606,2]
[366731912,1750422647490,-460.0,0.00020606,2]
[366731914,1750422647499,-460.0,0.00020606,2]
[366731916,1750422647510,-460.0,0.00020606,2]
[366731918,1750422647521,-460.0,0.00020606,2]
[366731920,1750422647531,-151.0,0.00020606,2]
[366731922,1750422647541,-151.0,0.00020606,2]
[366731924,1750422647550,-460.0,0.00020606,2]
[366731926,1750422647561,-460.0,0.00020606,2]
[366731928,1750422647571,-151.0,0.00020606,2]
[366731930,1750422647580,-460.0,0.00020606,2]
[366731931,1750422647589,-460.0,0.00020606,2]
[366731933,1750422647599,-460.0,0.00020606,2]
[366731935,1750422647608,-460.0,0.00020606,2]
[366731937,1750422647617,-460.0,0.00020606,2]
[366731939,1750422647627,-431.15199728,0.00020606,2]
[366731941,1750422647638,-460.0,0.00020606,2]
[366731943,1750422647653,-460.0,0.00020606,2]
[366731945,1750422647663,-400.0,0.00020606,2]
[366731947,1750422647673,-460.0,0.00020606,2]
[366731949,1750422647683,-460.0,0.00020606,2]
[366731951,1750422647693,-460.0,0.00020606,2]
[366731953,1750422647703,-460.0,0.00020606,2]
[366731955,1750422647713,-520.96635681,0.00020606,2]
[366731957,1750422647724,-460.0,0.00020606,2]
[366731960,1750422647734,-439.60241394,0.00020606,2]
[366731961,1750422647744,-1069.51,0.00020606,2]
[366731964,1750422647754,-460.0,0.00020606,2]
[366731966,1750422647765,-460.0,0.00020606,2]
[366731968,1750422647776,-366.05690992,0.00020606,2]
[366731970,1750422647786,-460.0,0.00020606,2]
[366731972,1750422647797,-467.02992165,0.00020606,2]
[366731974,1750422647806,-460.0,0.00020606,2]
[366731976,1750422647816,-460.0,0.00020606,2]
[366731977,1750422647826,-460.0,0.00020606,2]
[366731980,1750422647836,-460.0,0.00020606,2]
[366731981,1750422647846,-1664.63,0.00020606,2]
[366731983,1750422647856,-460.0,0.00020606,2]
[366731985,1750422647866,-460.0,0.00020606,2]
[366731987,1750422647876,-460.0,0.00020606,2]
[366731989,1750422647887,-460.0,0.00020606,2]
[366731992,1750422647898,-440.0,0.00020606,2]
[366731994,1750422647908,-608.34,0.00020606,2]
[366731995,1750422647919,-460.0,0.00020606,2]
[366731997,1750422647930,-2498.46,0.00020606,2]
[366731999,1750422647940,-460.0,0.00020606,2]
[366732001,1750422647951,-461.01870167,0.00020606,2]
[366732002,1750422647961,-460.0,0.00020606,2]
[366732003,1750422647971,-460.0,0.00020606,2]
[366732004,1750422647981,-479.33,0.00020606,2]
[366732005,1750422647990,-460.0,0.00020606,2]
[366732006,1750422648000,-460.0,0.00020606,2]
[366732007,1750422648011,-460.0,0.00020606,2]
[366732008,1750422648020,-1005.89,0.00020606,2]
[366732009,1750422648031,-460.0,0.00020606,2]
[366732010,1750422648041,-469.19,0.00020606,2]
[366732011,1750422648053,-460.0,0.00020606,2]
[366732012,1750422648063,-266.484322,0.00020606,2]
[366732013,1750422648073,-450.0,0.00020606,2]
[366732014,1750422648083,-463.61,0.00020606,2]
[366732015,1750422648094,-266.484322,0.00020606,2]
[366732016,1750422648104,-460.0,0.00020606,2]
[366732017,1750422648114,-460.0,0.00020606,2]
[366732018,1750422648124,-460.0,0.00020606,2]
[366732019,1750422648134,-460.0,0.00020606,2]
[366732020,1750422648144,-460.0,0.00020606,2]
[366732021,1750422648154,-505.14393634,0.00020606,2]
[366732022,1750422648164,-501.84986204,0.00020606,2]
[366732023,1750422648174,-460.0,0.00020606,2]
[366732024,1750422648184,-460.0,0.00020606,2]
[366732025,1750422648194,-350.0,0.00020606,2]
[366732026,1750422648205,-843.1,0.00020606,2]
[366732027,1750422648215,-500.0,0.00020606,2]
[366732028,1750422648225,-460.0,0.00020606,2]
[366732029,1750422648235,-400.90108975,0.00020606,2]
[366732030,1750422648245,-648.64,0.00020606,2]
[366732031,1750422648255,-460.0,0.00020606,2]
[366732032,1750422648267,-460.0,0.00020606,2]
[366732033,1750422648277,-460.0,0.00020606,2]
[366732034,1750422648286,-460.0,0.00020606,2]
[366732035,1750422648296,-460.0,0.00020606,2]
[366732036,1750422648307,-460.0,0.00020606,2]
[366732037,1750422648317,-460.0,0.00020606,2]
[366732038,1750422648327,-460.0,0.00020606,2]
[366732039,1750422648337,-858.83,0.00020606,2]
[366732040,1750422648347,-460.0,0.00020606,2]
[366732041,1750422648357,-460.0,0.00020606,2]
[366732042,1750422648367,-460.0,0.00020606,2]
[366732043,1750422648377,-460.0,0.00020606,2]
[366732044,1750422648387,-151.0,0.00020606,2]
[366732045,1750422648398,-2191.64,0.00020606,2]
[366732046,1750422648408,-457.28242727,0.00020606,2]
[366732047,1750422648418,-460.0,0.00020606,2]
[366732048,1750422648428,-763.86,0.00020606,2]
[366732049,1750422648438,-460.0,0.00020606,2]
[366732050,1750422648448,-460.0,0.00020606,2]
[366732051,1750422648458,-460.0,0.00020606,2]
[366732052,1750422648468,-721.24,0.00020606,2]
[366732053,1750422648478,-460.0,0.00020607,2]
[366732054,1750422648488,-430.0,0.00020607,2]
[366732055,1750422648498,-460.0,0.00020607,2]
[366732056,1750422648508,-410.0,0.00020607,2]
[366732057,1750422648518,-214.72553952,0.00020607,2]
[366732058,1750422648528,-460.0,0.00020607,2]
[366732059,1750422648538,-410.0,0.00020607,2]
[366732060,1750422648549,-460.0,0.00020607,2]
[366732061,1750422648559,-460.0,0.00020607,2]
[366732062,1750422648569,-460.0,0.00020607,2]
[366732063,1750422648579,-151.0,0.00020607,2]
[366732064,1750422648589,-460.0,0.00020607,2]
[366732065,1750422648599,-693.87,0.00020607,2]
[366732066,1750422648609,-460.0,0.00020607,2]
[366732067,1750422648620,-5270.46627269,0.00020608,2]
[366732068,1750422648630,-460.0,0.00020608,2]
[366732069,1750422648640,-373.33719584,0.00020608,2]
[366732070,1750422648650,-440.0,0.00020608,2]
[366732071,1750422648659,-460.0,0.00020608,2]
[366732072,1750422648669,-460.0,0.00020608,2]
[366732073,1750422648679,-329.16382464,0.00020608,2]
[366732074,1750422648689,-460.0,0.00020608,2]
[366732075,1750422648699,-460.0,0.00020608,2]
[366732076,1750422648710,-460.0,0.00020608,2]
[366732077,1750422648720,-290.11571773,0.00020608,2]
[366732078,1750422648730,-460.0,0.00020608,2]
[366732079,1750422648740,-460.0,0.00020608,2]
[366732080,1750422648749,-460.0,0.00020608,2]
[366732081,1750422648759,-502.95349972,0.00020608,2]
[366732082,1750422648770,-460.0,0.00020608,2]
[366732083,1750422648781,-460.0,0.00020608,2]
[366732084,1750422648791,-449.80827875,0.00020608,2]
[366732085,1750422648801,-460.0,0.00020608,2]
[366732086,1750422648812,-460.0,0.00020608,2]
[366732087,1750422648822,-460.0,0.00020608,2]
[366732088,1750422648832,-460.0,0.00020608,2]
[366732089,1750422648842,-441.6286087,0.00020608,2]
[366732090,1750422648852,-460.0,0.00020608,2]
[366732091,1750422648862,-460.0,0.00020608,2]
[366732092,1750422648872,-460.0,0.00020608,2]
[366732093,1750422648882,-395.69261379,0.00020608,2]
[366732094,1750422648893,-460.0,0.00020608,2]
[366732095,1750422648904,-460.0,0.00020608,2]
[366732096,1750422648914,-460.0,0.00020608,2]
[366732097,1750422649058,-460.0,0.00020608,2]
[366732098,1750422649070,-435.24141904,0.00020608,2]
[366732099,1750422649081,-460.0,0.00020608,2]
[366732100,1750422649091,-460.0,0.00020608,2]
[366732101,1750422649100,-451.50420459,0.00020608,2]
[366732102,1750422649111,-410.0,0.00020608,2]
[366732103,1750422649121,-490.35696537,0.00020608,2]
[366732104,1750422649131,-460.0,0.00020608,2]
[366732105,1750422649141,-460.0,0.00020608,2]
[366732106,1750422649151,-460.0,0.00020608,2]
[366732107,1750422649162,-431.43419828,0.00020608,2]
[366732108,1750422649172,-460.0,0.00020608,2]
[366732109,1750422649182,-460.0,0.00020608,2]
[366732110,1750422649192,-355.67259303,0.00020608,2]
[366732111,1750422649202,-440.0,0.00020608,2]
[366732112,1750422649213,-460.0,0.00020608,2]
[366732113,1750422649223,-460.0,0.00020608,2]
[366732114,1750422649232,-461.04119892,0.00020608,2]
[366732115,1750422649242,-460.0,0.00020608,2]
[366732116,1750422649252,-460.0,0.00020608,2]
[366732117,1750422649263,-460.0,0.00020608,2]
[366732118,1750422649275,-513.47626026,0.00020608,2]
[366732119,1750422649285,-595.60869425,0.00020608,2]
[366732120,1750422649295,-386.11947404,0.00020608,2]
[366732121,1750422649304,-300.0,0.00020608,2]
[366732122,1750422649314,-198.35322482,0.00020608,2]
[366732123,1750422649324,-460.0,0.00020608,2]
[366732124,1750422649334,-440.0,0.00020608,2]
[366732125,1750422649344,-342.84952815,0.00020608,2]
[366732126,1750422649354,-355.30481609,0.00020608,2]
[366732127,1750422649364,-430.0,0.00020608,2]
[366732128,1750422649374,-460.0,0.00020608,2]
[366732129,1750422649384,-460.0,0.00020608,2]
[366732130,1750422649394,-460.0,0.00020608,2]
[366732131,1750422649403,-410.0,0.00020608,2]
[366732132,1750422649413,-351.08189282,0.00020608,2]
[366732133,1750422649423,-460.0,0.00020608,2]
[366732134,1750422649433,-460.0,0.00020608,2]
[366732135,1750422649443,-223.42216494,0.00020608,2]
[366732136,1750422649453,-460.0,0.00020608,2]
[366732137,1750422649463,-460.0,0.00020608,2]
[366732138,1750422649473,-460.0,0.00020608,2]
[366732139,1750422649482,-460.0,0.00020608,2]
[366732140,1750422649492,-401.50564245,0.00020608,2]
[366732141,1750422649503,-517.06172062,0.00020608,2]
[366732142,1750422649513,-460.0,0.00020608,2]
[366732143,1750422649523,-450.0,0.00020608,2]
[366732144,1750422649533,-357.43508074,0.00020608,2]
[366732145,1750422649543,-460.0,0.00020608,2]
[366732146,1750422649553,-460.0,0.00020608,2]
[366732147,1750422649563,-303.25209609,0.00020608,2]
[366732148,1750422649573,-353.05247909,0.00020608,2]
[366732149,1750422649582,-460.0,0.00020608,2]
[366732150,1750422649592,-463.38832792,0.00020608,2]
[366732151,1750422649602,-460.0,0.00020608,2]
[366732152,1750422649612,-460.0,0.00020608,2]
[366732153,1750422649622,-360.0,0.00020608,2]
[366732154,1750422649632,-460.0,0.00020608,2]
[366732155,1750422649645,-359.34444091,0.00020608,2]
[366732156,1750422649655,-437.83641884,0.00020608,2]
[366732157,1750422649664,-460.0,0.00020608,2]
[366732158,1750422649674,-460.0,0.00020608,2]
[366732159,1750422649685,-460.0,0.00020608,2]
[366732160,1750422649695,-460.0,0.00020608,2]
[366732161,1750422649705,-460.0,0.00020608,2]
[366732162,1750422649714,-361.88937681,0.00020608,2]
[366732163,1750422649724,-410.0,0.00020608,2]
[366732164,1750422649734,-460.0,0.00020608,2]
[366732165,1750422649744,-460.0,0.00020608,2]
[366732166,1750422649754,-460.0,0.00020608,2]
[366732167,1750422649764,-460.0,0.00020608,2]
[366732168,1750422649774,-460.0,0.00020608,2]
[366732169,1750422649784,-460.0,0.00020608,2]
[366732170,1750422649794,-428.37437069,0.00020608,2]
[366732171,1750422649804,-151.0,0.00020608,2]
[366732172,1750422649813,-460.0,0.00020608,2]
[366732173,1750422649823,-460.0,0.00020608,2]
[366732174,1750422649833,-400.0,0.00020608,2]
[366732175,1750422649842,-410.0,0.00020608,2]
[366732176,1750422649852,-151.0,0.00020608,2]